fUST/lending_fUST_20241022
["ID","MTS","AMOUNT","RATE_DAILY","PERIOD"]
[340611291,1729530660135,-500.0,0.00016986,2]
[340611292,1729530660165,-1289.29,0.00016986,2]
[340611293,1729530660183,-616.16,0.00016986,2]
[340611294,1729530660195,-684.14,0.00016986,2]
[340611295,1729530660204,-500.0,0.00016986,2]
[340611296,1729530660214,-500.0,0.00016986,2]
[340611297,1729530660223,-1394.11,0.00016986,2]
[340611298,1729530660233,-500.0,0.00016986,2]
[340611299,1729530660242,-500.0,0.00016986,2]
[340611300,1729530660252,-1842.83,0.00016986,2]
[340611301,1729530660261,-562.59541619,0.00016986,2]
[340611302,1729530660271,-500.0,0.00016986,2]
[340611303,1729530660280,-1052.84,0.00016986,2]
[340611304,1729530660289,-573.93,0.00016986,2]
[340611305,1729530660298,-500.0,0.00016986,2]
[340611306,1729530660307,-919.14,0.00016986,2]
[340611307,1729530660317,-1499.73,0.00016986,2]
[340611308,1729530660326,-585.06542309,0.00016986,2]
[340611309,1729530660335,-500.0,0.00016986,2]
[340611310,1729530660344,-1433.34,0.00016986,2]
[340611311,1729530660354,-1395.51,0.00016986,2]
[340611312,1729530660363,-772.35,0.00016986,2]
[340611313,1729530660373,-679.38,0.00016986,2]
[340611314,1729530660381,-1775.89,0.00016986,2]
[340611315,1729530660391,-500.0,0.00016986,2]
[340611316,1729530660400,-500.0,0.00016986,2]
[340611317,1729530660409,-873.49,0.00016986,2]
[340611318,1729530660418,-2455.36,0.00016986,2]
[340611319,1729530660428,-500.0,0.00016986,2]
[340611320,1729530660437,-2775.56,0.00016986,2]
[340611321,1729530660447,-2609.24,0.00016986,2]
[340611322,1729530660456,-500.0,0.00016986,2]
[340611323,1729530660465,-875.34,0.00016986,2]
[340611324,1729530660474,-500.0,0.00016986,2]
[340611325,1729530660484,-412.0077264,0.00016986,2]
[340611326,1729530660494,-2659.02,0.00016986,2]
[340611327,1729530660503,-500.0,0.00016986,2]
[340611328,1729530660512,-1646.74,0.00016986,2]
[340611329,1729530660521,-620.1,0.00016986,2]
[340611330,1729530660531,-908.47,0.00016986,2]
[340611331,1729530660540,-1191.5,0.00016986,2]
[340611332,1729530660550,-500.0,0.00016986,2]
[340611333,1729530660559,-500.0,0.00016986,2]
[340611334,1729530660568,-500.0,0.00016986,2]
[340611335,1729530660577,-770.99,0.00016986,2]
[340611336,1729530660586,-1838.63,0.00016986,2]
[340611337,1729530660595,-500.0,0.00016986,2]
[340611338,1729530660606,-500.0,0.00016986,2]
[340611339,1729530660615,-820.12,0.00016986,2]
[340611340,1729530660625,-1904.03,0.00016986,2]
[340611341,1729530660634,-500.0,0.00016986,2]
[340611342,1729530660644,-534.56492218,0.00016986,2]
[340611343,1729530660654,-276.22472063,0.00016986,2]
[340611344,1729530660664,-713.51,0.00016986,2]
[340611345,1729530660674,-1237.54,0.00016986,2]
[340611346,1729530660683,-500.0,0.00016986,2]
[340611347,1729530660693,-500.0,0.00016986,2]
[340611348,1729530660703,-641.20434758,0.00016986,2]
[340611349,1729530660713,-1046.51,0.00016986,2]
[340611350,1729530660722,-500.0,0.00016986,2]
[340611351,1729530660732,-665.17,0.00016986,2]
[340611352,1729530660742,-500.0,0.00016986,2]
[340611353,1729530660751,-500.0,0.00016986,2]
[340611354,1729530660761,-500.0,0.00016986,2]
[340611355,1729530660771,-1799.13,0.00016986,2]
[340611356,1729530660781,-735.16,0.00016986,2]
[340611357,1729530660791,-500.0,0.00016986,2]
[340611358,1729530660800,-1652.07,0.00016986,2]
[340611359,1729530660810,-727.55,0.00016986,2]
[340611360,1729530660820,-1696.07,0.00016986,2]
[340611361,1729530660830,-1156.46,0.00016986,2]
[340611362,1729530660840,-2271.75,0.00016986,2]
[340611363,1729530660852,-500.0,0.00016986,2]
[340611364,1729530660862,-1532.81,0.00016986,2]
[340611365,1729530660871,-196.76927584,0.00016986,2]
[340611366,1729530660881,-574.35,0.00016986,2]
[340611367,1729530660890,-1848.74,0.00016986,2]
[340611368,1729530660900,-500.0,0.00016986,2]
[340611369,1729530660910,-500.0,0.00016986,2]
[340611370,1729530660923,-996.12,0.00016986,2]
[340611371,1729530660933,-500.0,0.00016986,2]
[340611372,1729530660942,-2520.86,0.00016986,2]
[340611373,1729530660952,-567.54122731,0.00016986,2]
[340611374,1729530660962,-500.0,0.00016986,2]
[340611375,1729530660972,-692.17,0.00016986,2]
[340611376,1729530660981,-564.53234995,0.00016986,2]
[340611377,1729530660992,-500.0,0.00016986,2]
[340611378,1729530661003,-544.41,0.00016986,2]
[340611379,1729530661012,-500.0,0.00016986,2]
[340611380,1729530661022,-1757.8,0.00016986,2]
[340611381,1729530661032,-1869.57,0.00016986,2]
[340611382,1729530661041,-500.0,0.00016986,2]
[340611383,1729530661051,-747.76,0.00016986,2]
[340611384,1729530661060,-1300.69,0.00016986,2]
[340611385,1729530661069,-2546.5,0.00016986,2]
[340611386,1729530661078,-1026.11,0.00016986,2]
[340611387,1729530661088,-500.0,0.00016986,2]
[340611388,1729530661098,-500.0,0.00016986,2]
[340611389,1729530661111,-500.0,0.00016986,2]
[340611390,1729530661121,-1610.61,0.00016986,2]
[340611391,1729530661131,-598.79,0.00016986,2]
[340611392,1729530661140,-500.0,0.00016986,2]
[340611393,1729530661151,-500.0,0.00016986,2]
[340611394,1729530661161,-1197.5,0.00016986,2]
[340611395,1729530661171,-500.0,0.00016986,2]
[340611396,1729530661180,-736.38,0.00016986,2]
[340611397,1729530661189,-658.48,0.00016986,2]
[340611398,1729530661199,-1027.34,0.00016986,2]
[340611399,1729530661208,-1357.89,0.00016986,2]
[340611400,1729530661217,-500.0,0.00016986,2]
[340611401,1729530661227,-573.09,0.00016986,2]
[340611402,1729530661237,-1936.56,0.00016986,2]
[340611403,1729530661248,-500.0,0.00016986,2]
[340611404,1729530661257,-304.00801466,0.00016986,2]
[340611405,1729530661267,-403.60966971,0.00016986,2]
[340611406,1729530661276,-479.91744102,0.00016986,2]
[340611407,1729530661285,-500.0,0.00016986,2]
[340611408,1729530661294,-1109.73,0.00016986,2]
[340611409,1729530661304,-711.9,0.00016986,2]
[340611410,1729530661313,-3809.76,0.00016986,2]
[340611411,1729530661322,-500.0,0.00016986,2]
[340611412,1729530661331,-1522.01,0.00016986,2]
[340611413,1729530661340,-500.0,0.00016986,2]
[340611414,1729530661349,-829.78,0.00016986,2]
[340611415,1729530661362,-1932.93,0.00016986,2]
[340611416,1729530661371,-500.0,0.00016986,2]
[340611417,1729530661380,-500.0,0.00016986,2]
[340611418,1729530661389,-500.0,0.00016986,2]
[340611419,1729530661398,-500.0,0.00016986,2]
[340611420,1729530661407,-629.88,0.00016986,2]
[340611421,1729530661417,-932.15,0.00016986,2]
[340611422,1729530661426,-3260.33,0.00016986,2]
[340611423,1729530661435,-1685.22,0.00016986,2]
[340611424,1729530661444,-500.0,0.00016986,2]
[340611425,1729530661454,-1226.1,0.00016986,2]
[340611426,1729530661463,-646.21,0.00016986,2]
[340611427,1729530661473,-500.0,0.00016986,2]
[340611428,1729530661482,-1425.6,0.00016986,2]
[340611429,1729530661491,-1870.76,0.00016986,2]
[340611430,1729530661501,-524.8165552,0.00016986,2]
[340611431,1729530661510,-667.52,0.00016986,2]
[340611432,1729530661520,-2078.37,0.00016986,2]
[340611433,1729530661529,-167.14175822,0.00016986,2]
[340611434,1729530661538,-620.01,0.00016986,2]
[340611435,1729530661547,-900.68,0.00016986,2]
[340611436,1729530661556,-1134.44,0.00016986,2]
[340611437,1729530661565,-8556.14,0.00016986,2]
[340611438,1729530661574,-942.08,0.00016986,2]
[340611439,1729530661583,-500.0,0.00016986,2]
[340611440,1729530661592,-706.96,0.00016986,2]
[340611441,1729530661601,-1657.6,0.00016986,2]
[340611442,1729530661616,-500.0,0.00016986,2]
[340611443,1729530661625,-929.23,0.00016986,2]
[340611444,1729530661634,-1839.04,0.00016986,2]
[340611445,1729530661643,-711.8,0.00016986,2]
[340611446,1729530661653,-1195.81,0.00016986,2]
[340611447,1729530661661,-2051.29,0.00016986,2]
[340611448,1729530661671,-967.77,0.00016986,2]
[340611449,1729530661679,-500.0,0.00016986,2]
[340611450,1729530661689,-500.0,0.00016986,2]
[340611451,1729530661698,-1532.97,0.00016986,2]
[340611452,1729530661707,-500.0,0.00016986,2]
[340611453,1729530661716,-4049.28,0.00016986,2]
[340611454,1729530661725,-837.25,0.00016986,2]
[340611455,1729530661734,-500.0,0.00016986,2]
[340611456,1729530661743,-1378.08,0.00016986,2]
[340611457,1729530661752,-500.0,0.00016986,2]
[340611458,1729530661762,-691.13,0.00016986,2]
[340611459,1729530661771,-2910.41,0.00016986,2]
[340611460,1729530661780,-1060.97,0.00016986,2]
[340611461,1729530661789,-568.96449018,0.00016986,2]
[340611462,1729530661798,-1528.9,0.00016986,2]
[340611463,1729530661807,-685.73,0.00016986,2]
[340611464,1729530661816,-500.0,0.00016986,2]
[340611465,1729530661826,-650.14,0.00016986,2]
[340611466,1729530661836,-1050.28,0.00016986,2]
[340611467,1729530661845,-2115.6,0.00016986,2]
[340611468,1729530661857,-648.75,0.00016986,2]
[340611469,1729530661867,-500.0,0.00016986,2]
[340611470,1729530661876,-2035.95,0.00016986,2]
[340611471,1729530661885,-758.97,0.00016986,2]
[340611472,1729530661894,-3333.09,0.00016986,2]
[340611473,1729530661904,-500.0,0.00016986,2]
[340611474,1729530661915,-904.65,0.00016986,2]
[340611475,1729530661925,-885.43,0.00016986,2]
[340611476,1729530661935,-500.0,0.00016986,2]
[340611477,1729530661944,-1034.39,0.00016986,2]
[340611478,1729530661954,-233.21554231,0.00016986,2]
[340611479,1729530661964,-1022.01,0.00016986,2]
[340611480,1729530661973,-500.0,0.00016986,2]
[340611481,1729530661982,-500.0,0.00016986,2]
[340611482,1729530661994,-825.71,0.00016986,2]
[340611483,1729530662003,-1591.64,0.00016986,2]
[340611484,1729530662012,-858.8,0.00016986,2]
[340611485,1729530662022,-500.0,0.00016986,2]
[340611486,1729530662031,-519.34,0.00016986,2]
[340611487,1729530662040,-500.0,0.00016986,2]
[340611488,1729530662050,-1461.86,0.00016986,2]
[340611489,1729530662059,-567.3171315,0.00016986,2]
[340611490,1729530662069,-500.0,0.00016986,2]
[340611491,1729530662078,-595.39,0.00016986,2]
[340611492,1729530662087,-946.19,0.00016986,2]
[340611493,1729530662097,-2068.58,0.00016986,2]
[340611494,1729530662108,-1514.73,0.00016986,2]
[340611495,1729530662118,-1546.92,0.00016986,2]
[340611496,1729530662128,-1242.99,0.00016986,2]
[340611497,1729530662138,-570.83,0.00016986,2]
[340611498,1729530662148,-168.64911417,0.00016986,2]
[340611499,1729530662157,-1660.42,0.00016986,2]
[340611500,1729530662167,-1416.56,0.00016986,2]
[340611501,1729530662176,-500.0,0.00016986,2]
[340611502,1729530662185,-906.06,0.00016986,2]
[340611503,1729530662195,-1049.53,0.00016986,2]
[340611504,1729530662204,-631.58,0.00016986,2]
[340611505,1729530662213,-830.8,0.00016986,2]
[340611506,1729530662222,-577.61639368,0.00016986,2]
[340611507,1729530662232,-500.0,0.00016986,2]
[340611508,1729530662241,-1530.53,0.00016986,2]
[340611509,1729530662251,-303.69601719,0.00016986,2]
[340611510,1729530662261,-500.0,0.00016986,2]
[340611511,1729530662270,-1433.79,0.00016986,2]
[340611512,1729530662280,-1456.82,0.00016986,2]
[340611513,1729530662289,-1539.97,0.00016986,2]
[340611514,1729530662298,-585.51,0.00016986,2]
[340611515,1729530662307,-570.16,0.00016986,2]
[340611516,1729530662318,-1634.05,0.00016986,2]
[340611517,1729530662328,-595.48019141,0.00016986,2]
[340611518,1729530662337,-3619.48,0.00016986,2]
[340611519,1729530662347,-689.59,0.00016986,2]
[340611520,1729530662359,-500.0,0.00016986,2]
[340611521,1729530662369,-1480.26,0.00016986,2]
[340611522,1729530662379,-1824.89,0.00016986,2]
[340611523,1729530662388,-739.01,0.00016986,2]
[340611524,1729530662398,-1636.84,0.00016986,2]
[340611525,1729530662408,-500.0,0.00016986,2]
[340611526,1729530662417,-500.0,0.00016986,2]
[340611527,1729530662426,-3996.87,0.00016986,2]
[340611528,1729530662436,-732.75,0.00016986,2]
[340611529,1729530662446,-500.0,0.00016986,2]
[340611530,1729530662455,-500.0,0.00016986,2]
[340611531,1729530662464,-679.8,0.00016986,2]
[340611532,1729530662474,-566.54,0.00016986,2]
[340611533,1729530662483,-2674.94,0.00016986,2]
[340611534,1729530662492,-500.0,0.00016986,2]
[340611535,1729530662502,-1840.15,0.00016986,2]
[340611536,1729530662511,-427.92921269,0.00016986,2]
[340611537,1729530662521,-2945.75,0.00016986,2]
[340611538,1729530662531,-500.0,0.00016986,2]
[340611539,1729530662539,-500.0,0.00016986,2]
[340611540,1729530662549,-4588.82,0.00016986,2]
[340611541,1729530662559,-2080.28,0.00016986,2]
[340611542,1729530662569,-500.0,0.00016986,2]
[340611543,1729530662578,-1906.7,0.00016986,2]
[340611544,1729530662587,-799.24,0.00016986,2]
[340611545,1729530662597,-660.24,0.00016986,2]
[340611546,1729530662608,-500.0,0.00016986,2]
[340611547,1729530662617,-815.32,0.00016986,2]
[340611548,1729530662627,-1158.65,0.00016986,2]
[340611549,1729530662636,-845.66,0.00016986,2]
[340611550,1729530662645,-500.0,0.00016986,2]
[340611551,1729530662655,-500.0,0.00016986,2]
[340611552,1729530662664,-1194.06,0.00016986,2]
[340611553,1729530662674,-897.71,0.00016986,2]
[340611554,1729530662684,-1955.63,0.00016986,2]
[340611555,1729530662693,-500.0,0.00016986,2]
[340611556,1729530662702,-1348.8,0.00016986,2]
[340611557,1729530662711,-770.76,0.00016986,2]
[340611558,1729530662721,-1061.64,0.00016986,2]
[340611559,1729530662732,-1116.18,0.00016986,2]
[340611560,1729530662741,-500.0,0.00016986,2]
[340611561,1729530662751,-500.0,0.00016986,2]
[340611562,1729530662760,-687.56,0.00016986,2]
[340611563,1729530662769,-1944.03,0.00016986,2]
[340611564,1729530662779,-500.0,0.00016986,2]
[340611565,1729530662789,-500.0,0.00016986,2]
[340611566,1729530662798,-977.46,0.00016986,2]
[340611567,1729530662807,-500.0,0.00016986,2]
[340611568,1729530662816,-1530.48,0.00016986,2]
[340611569,1729530662827,-2497.2,0.00016986,2]
[340611570,1729530662836,-2507.07,0.00016986,2]
[340611571,1729530662845,-894.66,0.00016986,2]
[340611572,1729530662856,-500.0,0.00016986,2]
[340611573,1729530662865,-885.54,0.00016986,2]
[340611574,1729530662875,-15931.64,0.00016986,2]
[340611575,1729530662884,-500.0,0.00016986,2]
[340611576,1729530662893,-1304.02,0.00016986,2]
[340611577,1729530662902,-2063.79,0.00016986,2]
[340611578,1729530662912,-7937.64,0.00016986,2]
[340611579,1729530662924,-1239.13,0.00016986,2]
[340611580,1729530662933,-633.95,0.00016986,2]
[340611581,1729530662942,-2277.99,0.00016986,2]
[340611582,1729530662951,-641.32,0.00016986,2]
[340611583,1729530662961,-657.31,0.00016986,2]
[340611584,1729530662970,-1534.82,0.00016986,2]
[340611585,1729530662980,-1317.96,0.00016986,2]
[340611586,1729530662990,-1407.04,0.00016986,2]
[340611587,1729530662999,-607.92,0.00016986,2]
[340611588,1729530663009,-773.67,0.00016986,2]
[340611589,1729530663019,-500.0,0.00016986,2]
[340611590,1729530663029,-3203.45,0.00016986,2]
[340611591,1729530663039,-500.0,0.00016986,2]
[340611592,1729530663049,-544.61,0.00016986,2]
[340611593,1729530663059,-629.59,0.00016986,2]
[340611594,1729530663069,-5081.38,0.00016986,2]
[340611595,1729530663078,-1533.78,0.00016986,2]
[340611596,1729530663087,-500.0,0.00016986,2]
[340611597,1729530663259,-18056.13,0.00016986,2]
[340611598,1729530663269,-1263.71,0.00016986,2]
[340611599,1729530663279,-32021.07,0.00016986,2]
[340611600,1729530663288,-1214.06,0.00016986,2]
[340611601,1729530663298,-1686.63,0.00016986,2]
[340611602,1729530663307,-1000.0,0.00017,17]
[340611603,1729530663316,-1000.0,0.00017047,2]
[340611604,1729530663326,-1000.0,0.00017047,2]
[340611605,1729530663335,-1000.0,0.00017047,2]
[340611606,1729530663345,-600.0,0.00017087,2]
[340611607,1729530663355,-743.653587,0.00017105,2]
[340611608,1729530663365,-321.230663,0.00017105,2]
[340611609,1729530663374,-247.44287,0.00017105,2]
[340611610,1729530663383,-1500.0,0.00017147,2]
[340611611,1729530663394,-465.05320281,0.000172,2]
[340611612,1729530663403,-500.0,0.00017239,2]
[340611613,1729530663413,-1000.0,0.00017247,2]
[340611614,1729530663422,-1000.0,0.00017247,2]
[340611615,1729530663432,-480.65014284,0.00017247,2]
[340611616,1729530663441,-1000.0,0.00017247,2]
[340611617,1729530663451,-1000.0,0.00017247,2]
[340611618,1729530663460,-660.97864487,0.0001726,2]
[340611619,1729530663470,-500.0,0.0001726,2]
[340611620,1729530663479,-1398.9,0.0001726,2]
[340611621,1729530663489,-500.0,0.0001726,2]
[340611622,1729530663499,-500.0,0.0001726,2]
[340611623,1729530663509,-565.45093032,0.0001726,2]
[340611624,1729530663519,-500.0,0.0001726,2]
[340611625,1729530663528,-500.0,0.0001726,2]
[340611626,1729530663538,-500.0,0.0001726,2]
[340611627,1729530663548,-500.0,0.0001726,2]
[340611628,1729530663557,-918.3,0.0001726,2]
[340611629,1729530663567,-500.0,0.0001726,2]
[340611630,1729530663577,-500.0,0.0001726,2]
[340611631,1729530663587,-913.39,0.0001726,2]
[340611632,1729530663597,-660.96,0.0001726,2]
[340611633,1729530663607,-500.0,0.0001726,2]
[340611634,1729530663617,-500.0,0.0001726,2]
[340611635,1729530663626,-703.95,0.0001726,2]
[340611636,1729530663636,-1693.58,0.0001726,2]
[340611637,1729530663646,-575.46034465,0.0001726,2]
[340611638,1729530663655,-1060.79,0.0001726,2]
[340611639,1729530663665,-286.01459696,0.0001726,2]
[340611640,1729530663675,-500.0,0.0001726,2]
[340611641,1729530663684,-500.0,0.0001726,2]
[340611642,1729530663694,-599.21251679,0.0001726,2]
[340611643,1729530663704,-576.26,0.0001726,2]
[340611644,1729530663714,-1238.49,0.0001726,2]
[340611645,1729530663724,-1112.18,0.0001726,2]
[340611646,1729530663734,-500.0,0.0001726,2]
[340611647,1729530663744,-500.0,0.0001726,2]
[340611648,1729530663755,-500.0,0.0001726,2]
[340611649,1729530663764,-667.46,0.0001726,2]
[340611650,1729530663774,-557.86926905,0.0001726,2]
[340611651,1729530663783,-500.0,0.0001726,2]
[340611652,1729530663793,-319.39394463,0.0001726,2]
[340611653,1729530663802,-500.0,0.0001726,2]
[340611654,1729530663812,-500.0,0.0001726,2]
[340611655,1729530663826,-500.0,0.0001726,2]
[340611656,1729530663839,-500.0,0.0001726,2]
[340611657,1729530663849,-541.82828722,0.0001726,2]
[340611658,1729530663860,-500.0,0.0001726,2]
[340611659,1729530663871,-502.77,0.0001726,2]
[340611660,1729530663881,-1026.18,0.0001726,2]
[340611661,1729530663890,-500.0,0.0001726,2]
[340611662,1729530663900,-500.0,0.0001726,2]
[340611663,1729530663910,-776.14,0.0001726,2]
[340611664,1729530663923,-500.0,0.0001726,2]
[340611665,1729530663933,-489.15296653,0.0001726,2]
[340611666,1729530663943,-751.97,0.0001726,2]
[340611667,1729530663953,-1093.26,0.0001726,2]
[340611668,1729530663964,-500.0,0.0001726,2]
[340611669,1729530663974,-500.0,0.0001726,2]
[340611670,1729530663984,-500.0,0.0001726,2]
[340611671,1729530663995,-500.0,0.0001726,2]
[340611672,1729530664004,-500.0,0.0001726,2]
[340611673,1729530664014,-500.0,0.0001726,2]
[340611674,1729530664024,-500.0,0.0001726,2]
[340611675,1729530664034,-500.0,0.0001726,2]
[340611676,1729530664044,-500.0,0.0001726,2]
[340611677,1729530664054,-900.44,0.0001726,2]
[340611678,1729530664063,-500.0,0.0001726,2]
[340611679,1729530664074,-1282.81,0.0001726,2]
[340611680,1729530664084,-1286.17,0.0001726,2]
[340611681,1729530664094,-557.32,0.0001726,2]
[340611682,1729530664105,-500.0,0.0001726,2]
[340611683,1729530664114,-924.4,0.0001726,2]
[340611684,1729530664123,-500.0,0.0001726,2]
[340611685,1729530664132,-1221.89,0.0001726,2]
[340611686,1729530664142,-500.0,0.0001726,2]
[340611687,1729530664152,-500.0,0.0001726,2]
[340611688,1729530664162,-500.0,0.0001726,2]
[340611689,1729530664172,-500.0,0.0001726,2]
[340611690,1729530664182,-500.0,0.0001726,2]
[340611691,1729530664192,-833.25,0.0001726,2]
[340611692,1729530664202,-805.64,0.0001726,2]
[340611693,1729530664212,-1374.1,0.0001726,2]
[340611694,1729530664222,-1739.42,0.0001726,2]
[340611695,1729530664232,-1859.17,0.0001726,2]
[340611696,1729530664243,-500.0,0.0001726,2]
[340611697,1729530664253,-500.0,0.0001726,2]
[340611698,1729530664263,-882.84,0.0001726,2]
[340611699,1729530664273,-581.25,0.0001726,2]
[340611700,1729530664283,-500.0,0.0001726,2]
[340611701,1729530664294,-1275.42,0.0001726,2]
[340611702,1729530664304,-500.0,0.0001726,2]
[340611703,1729530664313,-1946.86,0.0001726,2]
[340611704,1729530664323,-500.0,0.0001726,2]
[340611705,1729530664333,-804.77,0.0001726,2]
[340611706,1729530664344,-500.0,0.0001726,2]
[340611707,1729530664355,-1550.81,0.0001726,2]
[340611708,1729530664366,-500.0,0.0001726,2]
[340611709,1729530664377,-1249.75,0.0001726,2]
[340611710,1729530664387,-1755.27,0.0001726,2]
[340611711,1729530664398,-1139.34,0.0001726,2]
[340611712,1729530664407,-500.0,0.0001726,2]
[340611713,1729530664417,-1851.65,0.0001726,2]
[340611714,1729530664427,-641.19,0.0001726,2]
[340611715,1729530664437,-942.24,0.0001726,2]
[340611716,1729530664447,-500.0,0.0001726,2]
[340611717,1729530664457,-2163.94,0.0001726,2]
[340611718,1729530664466,-345.56898517,0.0001726,2]
[340611719,1729530664477,-500.0,0.0001726,2]
[340611720,1729530664487,-500.0,0.0001726,2]
[340611721,1729530664496,-500.0,0.0001726,2]
[340611722,1729530664506,-898.34,0.0001726,2]
[340611723,1729530664516,-921.6,0.0001726,2]
[340611724,1729530664527,-1889.85,0.0001726,2]
[340611725,1729530664537,-807.66,0.0001726,2]
[340611726,1729530664548,-739.46,0.0001726,2]
[340611727,1729530664557,-500.0,0.0001726,2]
[340611728,1729530664567,-2046.25,0.0001726,2]
[340611729,1729530664577,-1962.73,0.0001726,2]
[340611730,1729530664587,-635.17826508,0.0001726,2]
[340611731,1729530664597,-967.62,0.0001726,2]
[340611732,1729530664609,-500.0,0.0001726,2]
[340611733,1729530664620,-200.0,0.0001726,2]
[340611734,1729530664630,-1764.19,0.0001726,2]
[340611735,1729530664640,-500.0,0.0001726,2]
[340611736,1729530664649,-1289.29,0.0001726,2]
[340611737,1729530664660,-616.16,0.0001726,2]
[340611738,1729530664670,-684.14,0.0001726,2]
[340611739,1729530664680,-500.0,0.0001726,2]
[340611740,1729530664689,-500.0,0.0001726,2]
[340611741,1729530664699,-1394.11,0.0001726,2]
[340611742,1729530664709,-500.0,0.0001726,2]
[340611743,1729530664719,-500.0,0.0001726,2]
[340611744,1729530664729,-1842.83,0.0001726,2]
[340611745,1729530664740,-479.86052302,0.0001726,2]
[340611746,1729530664750,-1052.84,0.0001726,2]
[340611747,1729530664760,-573.93,0.0001726,2]
[340611748,1729530664770,-500.0,0.0001726,2]
[340611749,1729530664780,-919.14,0.0001726,2]
[340611750,1729530664790,-1499.73,0.0001726,2]
[340611751,1729530664799,-500.0,0.0001726,2]
[340611752,1729530664809,-1433.34,0.0001726,2]
[340611753,1729530664819,-1395.51,0.0001726,2]
[340611754,1729530664831,-772.35,0.0001726,2]
[340611755,1729530664841,-679.38,0.0001726,2]
[340611756,1729530664851,-1775.89,0.0001726,2]
[340611757,1729530664863,-492.04842531,0.0001726,2]
[340611758,1729530664872,-500.0,0.0001726,2]
[340611759,1729530664882,-873.49,0.0001726,2]
[340611760,1729530664891,-2455.36,0.0001726,2]
[340611761,1729530664901,-500.0,0.0001726,2]
[340611762,1729530664911,-2775.56,0.0001726,2]
[340611763,1729530664924,-2609.24,0.0001726,2]
[340611764,1729530664934,-597.33460394,0.0001726,2]
[340611765,1729530664944,-875.34,0.0001726,2]
[340611766,1729530664954,-500.0,0.0001726,2]
[340611767,1729530664965,-2659.02,0.0001726,2]
[340611768,1729530664975,-155.96373666,0.0001726,2]
[340611769,1729530664985,-1646.74,0.0001726,2]
[340611770,1729530664996,-620.1,0.0001726,2]
[340611771,1729530665007,-908.47,0.0001726,2]
[340611772,1729530665017,-1191.5,0.0001726,2]
[340611773,1729530665027,-500.0,0.0001726,2]
[340611774,1729530665037,-170.66049707,0.0001726,2]
[340611775,1729530665046,-500.0,0.0001726,2]
[340611776,1729530665056,-770.99,0.0001726,2]
[340611777,1729530665066,-1838.63,0.0001726,2]
[340611778,1729530665076,-500.0,0.0001726,2]
[340611779,1729530665086,-500.0,0.0001726,2]
[340611780,1729530665095,-820.12,0.0001726,2]
[340611781,1729530665105,-1904.03,0.0001726,2]
[340611782,1729530665115,-500.0,0.0001726,2]
[340611783,1729530665125,-713.51,0.0001726,2]
[340611784,1729530665134,-1237.54,0.0001726,2]
[340611785,1729530665144,-500.0,0.0001726,2]
[340611786,1729530665155,-500.0,0.0001726,2]
[340611787,1729530665164,-1046.51,0.0001726,2]
[340611788,1729530665174,-665.17,0.0001726,2]
[340611789,1729530665185,-263.68550362,0.0001726,2]
[340611790,1729530665195,-500.0,0.0001726,2]